[Event "MCCT Chessable Masters 2022"]
[Site "Online"]
[Date "2022.05.16"]
[Round "4.3"]
[White "Shankland, Sam"]
[Black "Hansen, Eric"]
[Result "1-0"]
[ECO "A29"]
[WhiteElo "2718"]
[BlackElo "2606"]
[Annotator "TA"]
[PlyCount "107"]
[EventDate "2022.05.19"]
[EventType "tourn"]
[EventCountry "NET"]
[SourceTitle "playchess.com"]
[Source "ChessBase"]
[SourceQuality "1"]
[TimeControl "900+10"]

{[%evp 16,107,29,12,26,0,25,13,19,19,27,25,23,22,36,24,17,20,18,20,18,14,33,26,33,31,31,29,27,25,41,56,54,56,56,26,26,16,16,17,78,79,83,83,83,83,90,90,90,90,90,90,90,90,90,90,90,90,90,90,90,90,102,102,103,102,102,102,102,102,102,102,102,102,102,102,87,87,87,87,87,87,4070,2866,12805,12806,12802,12795,12781,8650,9310,7347,4627,1411]} 1. c4 {[%emt 0:00:00]} Nf6 {[%emt 0:00:00]} 2. Nc3 {[%emt 0:00:04]} d5 {[%emt 0:00:01]} 3. cxd5 {[%emt 0:00:04]} Nxd5 {[%emt 0:00:00]} 4. g3 {[%emt 0:00:19]} Nxc3 {[%emt 0:00:52]} 5. bxc3 {[%emt 0:00:03]} e5 {[%emt 0:00:00]} 6. Bg2 {[%emt 0:00:06]} Bd6 {[%emt 0:00:03]} 7. Nf3 {[%emt 0:00:24]} Nc6 {[%emt 0:00:04]} 8. O-O {[%emt 0:00:07]} O-O {[%emt 0:00:07]} 9. d3 {[%emt 0:01:13]} Bd7 {[%emt 0:00:21] [#] A29: English Opening: Four Knights Variation with 4 g3.} 10. a4 $146 {[%emt 0:00:13]} ({Predecessor:} 10. Bb2 Qe7 11. c4 Bc5 12. e3 Bg4 13. h3 Be6 14. Nxe5 Nb4 15. Bxb7 Rab8 16. Bg2 {1-0 (32) Kreuchauf,O-Blume,B freechess.de 2019}) 10... Re8 {[%emt 0:01:07]} 11. Nd2 {[%emt 0:00:10]} Na5 {[%emt 0:00:04] The position is equal.} 12. Nb3 {[%emt 0:00:48]} Nxb3 {[%emt 0:00:02]} 13. Qxb3 {[%emt 0:00:01]} Rb8 {[%emt 0:00:00]} 14. a5 {[%emt 0:00:20]} b6 {[%emt 0:00:15]} 15. axb6 {[%emt 0:00:08]} axb6 {[%emt 0:00:03]} 16. Ra7 {[%emt 0:00:34]} Be6 {[%emt 0:00:21]} 17. Qb5 {[%emt 0:00:57]} Bd7 {[%emt 0:00:02]} 18. Qa6 {[%emt 0:00:36]} h5 {[%emt 0:00:39]} 19. h4 {[%emt 0:00:13]} Bg4 {[%emt 0:00:30]} 20. Re1 {[%emt 0:00:22]} Qf6 {[%emt 0:00:16][%cal Oe5e4]} 21. Bg5 {[%emt 0:00:23]} Qg6 {[%emt 0:01:12]} 22. Qb5 {[%emt 0:00:36]} f6 {[%emt 0:04:46]} 23. Bc1 {[%emt 0:00:44]} Bf5 {[%emt 0:00:05]} 24. Ba3 {[%emt 0:00:12]} Bxa3 {[%emt 0:01:25]} 25. Qb3+ {[%emt 0:00:26]} Qf7 {[%emt 0:00:26]} 26. Qxf7+ {[%emt 0:01:18]} Kxf7 {[%emt 0:00:03]} 27. Rxa3 {[%emt 0:00:00]} e4 {[%emt 0:00:38]} (27... g5 $11 {remains equal.}) 28. dxe4 $1 $16 {[%emt 0:00:06]} Bxe4 {[%emt 0:00:04]} 29. Ra7 $1 {[%emt 0:00:02]} Bxg2 {[%emt 0:01:18]} 30. Rxc7+ {[%emt 0:00:02]} ({Reject} 30. Kxg2 $6 Rbc8 $11) 30... Re7 {[%emt 0:00:16]} 31. Rxe7+ {[%emt 0:00:03]} Kxe7 {[%emt 0:00:00]} 32. Kxg2 {[%emt 0:00:01][%mdl 4096] Endgame KR-KR} Rc8 {[%emt 0:00:00]} 33. Rb1 {[%emt 0:00:33]} Rxc3 {[%emt 0:00:02]} 34. Rxb6 {[%emt 0:00:00]} Kf7 {[%emt 0:00:14]} 35. Rd6 {[%emt 0:01:46]} Rb3 {[%emt 0:00:06]} 36. Rd3 {[%emt 0:00:16]} Rb4 {[%emt 0:00:06]} 37. Kf3 {[%emt 0:00:08]} Ke6 {[%emt 0:00:15]} 38. Ra3 {[%emt 0:00:18]} Rb5 {[%emt 0:03:34]} 39. Ra7 {[%emt 0:00:14]} g6 {[%emt 0:01:18]} 40. Rg7 {[%emt 0:00:07]} g5 {[%emt 0:00:17]} 41. hxg5 {[%emt 0:00:21]} fxg5 {[%emt 0:00:02]} 42. Rh7 {[%emt 0:00:08]} g4+ {[%emt 0:00:10]} 43. Kg2 {[%emt 0:00:01]} Kf6 {[%emt 0:00:19] [#]} 44. f4 $1 {[%emt 0:00:08]} gxf3+ {[%emt 0:00:04]} 45. exf3 {[%emt 0:00:01][%cal Be2f3,Bf3f4][%mdl 32]} ({Don't play} 45. Kxf3 $6 Rf5+ 46. Kg2 Re5 $11) 45... Rb2+ {[%emt 0:00:06]} 46. Kh3 {[%emt 0:00:01]} Kg6 {[%emt 0:00:19]} 47. Ra7 {[%emt 0:00:01]} Rb1 {[%emt 0:00:13]} 48. Ra6+ {[%emt 0:00:18]} Kf5 $2 {[%emt 0:00:16][%mdl 8192] This move loses the game for Black.} (48... Kg7 $16) 49. f4 $18 {[%emt 0:00:20] Rh6 is the strong threat. White is clearly winning.} Rh1+ {[%emt 0:00:46]} 50. Kg2 {[%emt 0:00:03]} Rb1 {[%emt 0:00:08] [#]} 51. Rh6 $1 {[%emt 0:00:04]} Rb2+ {[%emt 0:00:14]} 52. Kh3 {[%emt 0:00:02]} Ke4 {[%emt 0:00:05]} 53. Rxh5 {[%emt 0:00:15] aiming for Kg4.} Kf3 {[%emt 0:00:03]} 54. Ra5 {[%emt 0:00:10] Weighted Error Value: White=0.02 (flawless) /Black=0.08 (flawless)} 1-0

[Event "MCCT Chessable Masters 2022"]
[Site "Online"]
[Date "2022.05.16"]
[Round "4.4"]
[White "Vidit, Santosh Gujrathi"]
[Black "Ding, Liren"]
[Result "1/2-1/2"]
[ECO "E32"]
[WhiteElo "2723"]
[BlackElo "2806"]
[Annotator "TA"]
[PlyCount "132"]
[EventDate "2022.05.19"]
[EventType "tourn"]
[EventCountry "NET"]
[SourceTitle "playchess.com"]
[Source "ChessBase"]
[SourceQuality "1"]
[TimeControl "900+10"]

{[%evp 13,132,0,0,0,0,0,0,0,0,0,0,0,0,0,0,0,0,0,0,0,0,0,0,0,4,8,13,0,2,5,5,0,5,0,0,0,0,0,0,0,0,-7,0,0,3,0,8,8,8,8,21,23,30,0,113,121,132,56,57,58,62,61,58,59,61,55,65,47,47,47,47,47,65,59,59,58,70,24,24,31,31,5,46,46,46,32,31,31,31,27,31,32,47,0,31,0,31,8,8,8,8,8,8,8,8,8,8,8,8,0,0,0,0,0,0,0,0,0,0,0,0]} 1. d4 {[%emt 0:00:00]} Nf6 {[%emt 0:00:00]} 2. c4 {[%emt 0:00:02]} e6 {[%emt 0:00:01]} 3. Nc3 {[%emt 0:00:02]} Bb4 {[%emt 0:00:01]} 4. Qc2 {[%emt 0:00:03]} O-O {[%emt 0:00:10]} 5. e4 {[%emt 0:01:26]} d5 {[%emt 0:00:03]} 6. e5 {[%emt 0:00:02]} Ne4 {[%emt 0:00:01]} 7. Bd3 {[%emt 0:00:03]} c5 $1 {[%emt 0:00:00]} 8. Nge2 {[%emt 0:00:21] E32: Nimzo-Indian: Classical (4 Qc2): 4...0-0.} cxd4 {[%emt 0:00:03]} 9. Nxd4 {[%emt 0:00:02]} Nd7 {[%emt 0:00:00]} 10. Bf4 {[%emt 0:00:03]} Qh4 {[%emt 0:00:01]} 11. g3 {[%emt 0:00:05]} Qh5 {[%emt 0:00:01]} 12. O-O {[%emt 0:00:17]} Bxc3 {[%emt 0:00:31]} 13. bxc3 {[%emt 0:00:03]} g5 {[%emt 0:00:00]} ({Don't play} 13... Nxe5 14. Be2 Ng4 15. Bxg4 Qxg4 16. f3 $16) 14. cxd5 {[%emt 0:00:20]} exd5 {[%emt 0:00:16]} 15. Be3 {[%emt 0:00:25] Strongly threatening f3.} Nxe5 {[%emt 0:00:05]} 16. f3 {[%emt 0:00:02] Prevents Bg4.} ({Reject} 16. Bxe4 dxe4 17. Qxe4 Re8 $15) 16... Nc5 {[%emt 0:00:49]} 17. Bf5 {[%emt 0:00:18]} Ne6 $1 {[%emt 0:00:12][%mdl 4] now scores much better than the old 17...f6.} 18. Rae1 {[%emt 0:01:10]} Nxd4 {[%emt 0:00:45]} 19. Bxd4 {[%emt 0:00:02]} Nc6 {[%emt 0:00:10] [#]} 20. Bf6 $146 {[%emt 0:00:28] A strong pair of Bishops.} ({Predecessor:} 20. f4 Nxd4 21. cxd4 gxf4 22. Rxf4 Bxf5 23. Rxf5 Qh6 24. Qc7 Rac8 25. Qe5 f6 26. Qxd5+ Kh8 27. Qxb7 Rc2 28. Rf2 Rxf2 29. Kxf2 Qxh2+ 30. Qg2 Qh5 {½-½ (30) So,W (2778)-Nakamura,H (2750) Berlin 2022}) 20... Qh6 {[%emt 0:02:43]} 21. Bxc8 {[%emt 0:00:04]} Raxc8 {[%emt 0:03:28]} 22. Qf5 {[%emt 0:00:04][%csl LRd5,LRg5] f4 is the strong threat.} Qg6 $132 {[%emt 0:00:01][%mdl 2048] Black is fighting back} 23. Qxg5 {[%emt 0:01:22]} (23. g4 {with more complications.} h6 24. f4 Qxf5 25. gxf5 Rfe8 26. fxg5 hxg5 27. Kf2) 23... Qxg5 {[%emt 0:00:03]} 24. Bxg5 {[%emt 0:00:01]} f6 {[%emt 0:00:04]} 25. Bf4 {[%emt 0:00:50]} Rfd8 {[%emt 0:01:52]} 26. Rf2 {[%emt 0:01:27]} Kf7 {[%emt 0:00:08]} 27. Rd2 {[%emt 0:02:33]} d4 {[%emt 0:00:58]} 28. cxd4 {[%emt 0:00:03]} Rxd4 {[%emt 0:00:01]} 29. Rb1 {[%emt 0:01:15]} b6 {[%emt 0:01:01]} 30. Rc2 {[%emt 0:00:03]} (30. Rc1 {is interesting.} Ne5 31. Rxc8 Nxf3+ 32. Kf2) 30... Rdd8 {[%emt 0:02:49]} 31. Rbc1 {[%emt 0:00:04]} Ne7 {[%emt 0:00:00]} 32. Rc7 {[%emt 0:00:36]} a6 {[%emt 0:00:22]} 33. Kf2 {[%emt 0:01:10]} (33. Rb1 $5 {[%cal Rc7b7]}) 33... h5 {[%emt 0:00:25]} (33... Rxc7 $1 $11 34. Rxc7 Ke6) 34. Rb7 $16 {[%emt 0:01:20] aiming for Re1. White is more active.} Ke8 {[%emt 0:01:05]} 35. Re1 {[%emt 0:02:41]} (35. Rxb6 $16 Rxc1 36. Bxc1) 35... Rc2+ $14 {[%emt 0:00:03]} 36. Kg1 {[%emt 0:00:15]} Rd7 {[%emt 0:00:02]} 37. Rxb6 {[%emt 0:00:02]} Kf7 {[%emt 0:00:08]} 38. Rxa6 {[%emt 0:00:05]} Rb7 {[%emt 0:00:15]} 39. Be3 {[%emt 0:00:55]} Nf5 {[%emt 0:00:25]} 40. Ra7 {[%emt 0:01:06]} Rxa7 {[%emt 0:00:01]} 41. Bxa7 {[%emt 0:00:00] Black must now prevent Ra1.} Rxa2 {[%emt 0:00:01][%mdl 4096] Endgame KRB-KRN} 42. Bf2 {[%emt 0:00:14]} Nd6 {[%emt 0:00:41]} 43. Rc1 {[%emt 0:00:13]} Kg6 {[%emt 0:00:27]} 44. Rc6 {[%emt 0:00:13]} Nf5 {[%emt 0:00:02]} 45. h3 {[%emt 0:00:26]} (45. Rc3 $14) 45... Ra1+ $11 {[%emt 0:00:45]} 46. Kg2 {[%emt 0:00:01]} Ra2 {[%emt 0:00:00]} 47. Re6 {[%emt 0:00:20]} Nd4 {[%emt 0:00:10]} (47... h4 $5 {[%cal Rh4g3]} 48. g4 (48. gxh4 Nxh4+ 49. Kg3 Nf5+ 50. Kg2 Nh4+ 51. Kg3 Nf5+ 52. Kg2 Nh4+ $11) 48... Ng3 $14) 48. Re4 {[%emt 0:00:02]} Nf5 {[%emt 0:00:13]} 49. g4 {[%emt 0:00:11]} hxg4 {[%emt 0:00:17]} 50. hxg4 {[%emt 0:00:07]} Ng7 {[%emt 0:00:38]} 51. Rc4 {[%emt 0:00:18]} Ne6 {[%emt 0:00:03]} 52. Kg3 {[%emt 0:00:06]} Ra3 {[%emt 0:00:03]} 53. Kg2 {[%emt 0:00:10]} Ra2 {[%emt 0:00:03]} 54. Re4 {[%emt 0:00:22]} Ng5 {[%emt 0:00:03]} 55. Re3 {[%emt 0:00:01]} f5 {[%emt 0:00:06] The position is equal.} 56. gxf5+ {[%emt 0:00:05]} Kxf5 {[%emt 0:00:01]} 57. Rb3 {[%emt 0:00:03]} Nh3 {[%emt 0:00:09]} 58. Kxh3 {[%emt 0:00:07]} Rxf2 {[%emt 0:00:01] KR-KR} 59. Kg3 {[%emt 0:00:01]} Ra2 {[%emt 0:00:01]} 60. Rb5+ {[%emt 0:00:01]} Kf6 {[%emt 0:00:01]} 61. f4 {[%emt 0:00:00]} Ra1 {[%emt 0:00:02]} 62. Kg4 {[%emt 0:00:01]} Rg1+ {[%emt 0:00:01]} 63. Kf3 {[%emt 0:00:01]} Rf1+ {[%emt 0:00:00]} 64. Kg4 {[%emt 0:00:00]} Rg1+ {[%emt 0:00:01]} 65. Kf3 {[%emt 0:00:00]} Rf1+ {[%emt 0:00:00]} 66. Kg4 {[%emt 0:00:01]} Rg1+ {[%emt 0:00:00] Weighted Error Value: White=0.08 (flawless) /Black=0.07 (flawless)} 1/2-1/2

[Event "MCCT Chessable Masters 2022"]
[Site "Online"]
[Date "2022.05.16"]
[Round "4.5"]
[White "Wei, Yi"]
[Black "Anton Guijarro, David"]
[Result "1-0"]
[ECO "D21"]
[WhiteElo "2727"]
[BlackElo "2691"]
[Annotator "TA"]
[PlyCount "73"]
[EventDate "2022.05.19"]
[EventType "tourn"]
[EventCountry "NET"]
[SourceTitle "playchess.com"]
[Source "ChessBase"]
[SourceQuality "1"]
[TimeControl "900+10"]

{[%evp 9,73,-12,21,29,44,54,56,52,64,59,81,74,108,75,69,89,71,56,79,38,63,-22,-21,-17,-30,-22,-27,-25,-24,-77,-79,-104,-60,-89,-80,-78,8,12,0,-172,-154,-167,16,14,97,107,114,122,114,102,139,100,220,229,237,205,211,204,479,472,540,518,1318,1227,29988,29989]} 1. d4 {[%emt 0:00:00]} d5 {[%emt 0:00:00]} 2. c4 {[%emt 0:00:13]} e6 {[%emt 0:00:03]} 3. Nf3 {[%emt 0:00:16]} dxc4 {[%emt 0:00:11]} 4. Qa4+ {[%emt 0:01:03]} Nd7 {[%emt 0:00:28]} 5. e4 {[%emt 0:00:29]} a6 {[%emt 0:00:41]} 6. Bxc4 {[%emt 0:00:24] D21: Queen's Gambit Accepted: 3 Nf3 sidelines.} Rb8 {[%emt 0:00:30]} 7. Qc2 {[%emt 0:01:33]} b5 {[%emt 0:00:15] [#]} 8. Bd3 $146 {[%emt 0:00:08] White is slightly better.} ({Predecessor:} 8. Be2 Bb7 9. Be3 Rc8 10. Nc3 Ngf6 11. e5 Nd5 12. Nxd5 Bxd5 13. O-O c5 14. dxc5 Bxc5 {0-1 (37) Inants,A (2241)-Skomorokhin,R (2378) Moscow 2008}) 8... c5 {[%emt 0:00:42]} 9. Bf4 {[%emt 0:00:22]} Rb6 {[%emt 0:00:39]} 10. O-O {[%emt 0:00:33] White is more active.} Ngf6 {[%emt 0:00:53]} 11. a4 {[%emt 0:00:50] Black must now prevent axb5.} c4 {[%emt 0:00:28]} 12. Be2 {[%emt 0:00:20]} Bb7 {[%emt 0:04:36]} 13. Nc3 {[%emt 0:03:40]} Bb4 {[%emt 0:02:29]} 14. a5 {[%emt 0:01:42]} Rc6 {[%emt 0:00:08]} 15. d5 {[%emt 0:00:23]} ({White should play} 15. e5 $1 $14) 15... exd5 $11 {[%emt 0:00:26]} 16. e5 {[%emt 0:02:46]} Bxc3 {[%emt 0:00:46]} 17. bxc3 {[%emt 0:00:01]} Ne4 {[%emt 0:00:18]} 18. Nd4 {[%emt 0:00:01]} Rg6 {[%emt 0:00:13]} 19. f3 {[%emt 0:02:30]} (19. Qc1 $11) 19... Nec5 $17 {[%emt 0:00:11]} 20. Bg3 {[%emt 0:00:38]} O-O {[%emt 0:01:16][%cal Og6g3]} 21. f4 {[%emt 0:00:07]} Ne4 {[%emt 0:00:11]} 22. Bf3 {[%emt 0:00:01]} f5 {[%emt 0:00:32]} (22... Ndc5 $17 23. Bf2 Nb3 24. Nxb3 cxb3) 23. exf6 $1 $11 {[%emt 0:00:14]} Qxf6 {[%emt 0:00:20] ...Ndc5 is the strong threat.} 24. f5 $2 {[%emt 0:00:05]} (24. Bxe4 $11 dxe4 25. f5) 24... Rxg3 $19 {[%emt 0:00:29]} (24... Nxg3 25. hxg3 (25. fxg6 Nxf1 26. Rxf1 Kh8 $17) 25... Rxg3 26. Qf2 $17) 25. hxg3 {[%emt 0:00:04]} Ndc5 {[%emt 0:00:36] Pair of Knights!} (25... Nxg3 $19 {Hoping for ...Qh6.} 26. Qf2 Nxf1 27. Rxf1 Ne5) 26. Ne6 $1 $11 {[%emt 0:00:39]} Re8 {[%emt 0:01:05] [#]} (26... Nxe6 $11 {keeps the balance.} 27. fxe6 Qxc3 28. Qxc3 Nxc3) 27. Nxc5 $1 $16 {[%emt 0:00:07]} Nxc5 {[%emt 0:00:01]} 28. Rae1 {[%emt 0:00:10]} Rd8 {[%emt 0:00:22]} 29. Qd2 {[%emt 0:00:12]} Ne4 {[%emt 0:00:11]} 30. Qe3 {[%emt 0:00:27]} ({Don't play} 30. Bxe4 $6 dxe4 31. Qe3 Rd3 $11) 30... h6 {[%emt 0:00:37]} (30... Qxc3 $2 31. Qb6 Rd6 32. Qa7 (32. Qxb7 {leads to mate.} Qd4+) 32... Qxa5 33. Qxb7 $18) (30... Nxc3 $16 31. Qe6+ Kf8) 31. Qa7 $18 {[%emt 0:00:09]} Qc6 {[%emt 0:00:25]} 32. Bxe4 {[%emt 0:00:13]} dxe4 {[%emt 0:00:01] [#]} 33. Rf4 $1 {[%emt 0:00:07]} Qd7 $2 {[%emt 0:00:15]} ({Not} 33... e3 34. Rf3 $16) (33... b4) 34. f6 {[%emt 0:00:05][%cal Bf5f6,Bf6f7][%mdl 32] aiming for fxg7.} Bd5 {[%emt 0:00:07]} 35. Qxa6 {[%emt 0:00:09]} Re8 {[%emt 0:00:23]} (35... Qc6 $142 36. f7+ Kf8) 36. Rd1 {[%emt 0:00:04]} Qc6 {[%emt 0:00:11]} 37. f7+ {[%emt 0:00:02] Never resign too early!  Weighted Error Value: White=0.14 (very precise) /Black=0.55} 1-0

[Event "MCCT Chessable Masters 2022"]
[Site "Online"]
[Date "2022.05.16"]
[Round "4.7"]
[White "Tari, Aryan"]
[Black "Harikrishna, Pentala"]
[Result "0-1"]
[ECO "C45"]
[WhiteElo "2654"]
[BlackElo "2705"]
[Annotator "TA"]
[PlyCount "84"]
[EventDate "2022.05.19"]
[EventType "tourn"]
[EventCountry "NET"]
[SourceTitle "playchess.com"]
[Source "ChessBase"]
[SourceQuality "1"]
[TimeControl "900+10"]

{[%evp 14,84,-15,-7,-18,-9,0,0,24,24,17,0,12,17,24,18,28,33,35,26,37,36,28,0,14,0,23,0,16,10,19,21,21,22,26,25,20,18,22,8,14,12,11,0,14,8,13,6,8,10,18,10,11,0,0,0,0,0,0,0,0,0,0,0,0,-988,-988,-952,-933,-1018,-999,-874,-842]} 1. e4 {[%emt 0:00:00][%cal Be2e4,Be4e5][%mdl 32]} e5 {[%emt 0:00:00]} 2. Nf3 {[%emt 0:00:02]} Nc6 {[%emt 0:00:02]} 3. d4 {[%emt 0:00:01]} exd4 {[%emt 0:00:02]} 4. Nxd4 {[%emt 0:00:00]} Nf6 {[%emt 0:00:02]} 5. Nxc6 {[%emt 0:00:01]} bxc6 {[%emt 0:00:02]} 6. e5 {[%emt 0:00:01]} Qe7 {[%emt 0:00:02]} 7. Qe2 {[%emt 0:00:01]} Nd5 {[%emt 0:00:02]} 8. h4 {[%emt 0:00:01]} Qe6 {[%emt 0:00:02] C45: Scotch Game.} 9. Nd2 {[%emt 0:00:13][%cal Bb1d2,Bd2f3,Bf3d4][%mdl 32] The main line 9.Nd2 scores better than 9.g3.} d6 {[%emt 0:00:26]} 10. exd6 {[%emt 0:00:08]} cxd6 {[%emt 0:00:12] [#] The position is equal.} 11. Nf3 $146 {[%emt 0:00:51]} ({Predecessor:} 11. Ne4 Be7 12. Bg5 O-O 13. O-O-O f6 14. Bd2 Rb8 15. c4 Nb6 16. Bf4 Rd8 17. Nxd6 Qxe2 18. Bxe2 {1-0 (30) Ibarra Jerez,J (2538)-Nasuta,G (2540) Chess.com INT 2019}) 11... Be7 {[%emt 0:00:10]} 12. Nd4 {[%emt 0:00:48]} Qxe2+ {[%emt 0:02:22]} 13. Bxe2 {[%emt 0:00:00]} Bd7 {[%emt 0:00:04]} 14. Bg5 {[%emt 0:01:04]} h6 {[%emt 0:00:07]} 15. Bxe7 {[%emt 0:00:09]} Nxe7 {[%emt 0:00:01]} 16. O-O-O {[%emt 0:00:16][%cal Ba1d1,Bd1d3,Bd3a3,Ba3c3,Bc3c4,Bc4a4][%mdl 32]} O-O-O {[%emt 0:00:03]} 17. Bf3 {[%emt 0:02:53]} Kc7 {[%emt 0:01:12]} 18. h5 {[%emt 0:00:33]} Rhe8 {[%emt 0:01:00]} 19. Rd3 {[%emt 0:02:33]} a5 {[%emt 0:02:57]} 20. Rhd1 {[%emt 0:01:45]} (20. Ra3 {with more complications.} Kb6 21. Rh4 d5 22. Rf4) 20... d5 {[%emt 0:00:58]} 21. Ra3 {[%emt 0:01:30]} Ra8 {[%emt 0:01:22]} ({Don't do} 21... c5 22. Nb3 $14) 22. c4 {[%emt 0:00:24]} dxc4 {[%emt 0:00:52]} 23. Rc3 {[%emt 0:00:09]} Nf5 {[%emt 0:00:04]} 24. Nxf5 {[%emt 0:00:22]} Bxf5 {[%emt 0:00:01]} 25. Rxc4 {[%emt 0:00:01]} Ra6 {[%emt 0:00:08]} 26. b3 {[%emt 0:01:01]} Re5 {[%emt 0:01:35]} 27. Kb2 {[%emt 0:00:25]} Be6 {[%emt 0:00:14]} 28. Ra4 {[%emt 0:00:31]} Rb6 {[%emt 0:01:22]} 29. Rc1 {[%emt 0:00:01]} Kd6 {[%emt 0:00:46]} 30. Rc2 {[%emt 0:00:31]} Kc7 {[%emt 0:00:14]} 31. Ka3 {[%emt 0:00:07]} Reb5 {[%emt 0:00:28]} 32. Rc3 {[%emt 0:01:05]} (32. Rd4 {feels hotter.} Re5 33. Ka4 Bf5 34. Re2) 32... Re5 {[%emt 0:00:01]} 33. Rd4 {[%emt 0:00:21]} c5 {[%emt 0:00:40]} 34. Ra4 {[%emt 0:01:26]} c4 {[%emt 0:00:18]} 35. Bg4 {[%emt 0:00:54]} f5 {[%emt 0:00:26]} 36. f4 {[%emt 0:00:10]} Rc5 {[%emt 0:00:38]} 37. Be2 {[%emt 0:00:07]} Kd6 {[%emt 0:00:47]} 38. Bxc4 {[%emt 0:00:12] Black must now prevent Rd3+.} Bd7 {[%emt 0:00:01]} 39. b4 $2 {[%emt 0:00:01][%mdl 8192]} (39. Rg3 $11) 39... axb4+ $19 {[%emt 0:00:14][%mdl 64] [#] Deflection. Black is clearly winning.} 40. Rxb4 {[%emt 0:00:01]} Ra5+ {[%emt 0:00:01]} 41. Kb3 {[%emt 0:00:02]} Ba4+ $1 {[%emt 0:00:01]} 42. Ka3 {[%emt 0:01:13]} Bd1+ {[%emt 0:00:08][%mdl 64] Discovered Attack.  Weighted Error Value: White=0.27 (precise) /Black=0.05 (flawless)} 0-1

[Event "MCCT Chessable Masters 2022"]
[Site "Online"]
[Date "2022.05.16"]
[Round "4.8"]
[White "Grandelius, Nils"]
[Black "Praggnanandhaa R"]
[Result "1/2-1/2"]
[ECO "B22"]
[WhiteElo "2635"]
[BlackElo "2642"]
[Annotator "TA"]
[PlyCount "87"]
[EventDate "2022.05.19"]
[EventType "tourn"]
[EventCountry "NET"]
[SourceTitle "playchess.com"]
[Source "ChessBase"]
[SourceQuality "1"]
[TimeControl "900+10"]

{[%evp 18,87,0,-6,0,0,0,0,0,0,0,0,0,0,2,-4,16,19,20,0,0,0,0,-10,-4,-8,-10,-12,-4,-6,-3,-4,0,0,0,0,0,0,0,-3,0,0,0,0,0,0,0,-21,-21,-21,-7,-7,0,-21,-21,-21,-21,-21,-21,-21,-21,-21,-21,-21,0,-21,0,-21,0,-21,0,-21]} 1. e4 {[%emt 0:00:00]} c5 {[%emt 0:00:00]} 2. c3 {[%emt 0:00:02]} d5 {[%emt 0:00:03]} 3. exd5 {[%emt 0:00:02]} Qxd5 {[%emt 0:00:00]} 4. d4 {[%emt 0:00:07]} Nf6 {[%emt 0:00:02]} 5. Nf3 {[%emt 0:00:03]} Nc6 {[%emt 0:00:02]} 6. Na3 {[%emt 0:00:29]} e6 {[%emt 0:01:42]} 7. Nb5 {[%emt 0:00:51]} Qd8 {[%emt 0:00:36]} 8. dxc5 {[%emt 0:01:16]} Bxc5 {[%emt 0:00:13]} 9. Qxd8+ {[%emt 0:00:21]} Kxd8 {[%emt 0:00:00]} 10. Bf4 {[%emt 0:03:30] The position is equal.} a6 {[%emt 0:02:02] B22: Sicilian: 2 c3.} 11. Nd6 {[%emt 0:00:33]} Ke7 {[%emt 0:00:04] [#]} 12. Nxc8+ $146 {[%emt 0:00:45]} ({Predecessor:} 12. Nc4 b5 13. Be3 Bxe3 14. Nxe3 Rd8 15. Be2 Bb7 16. O-O Rac8 17. Rfd1 Rxd1+ 18. Rxd1 {1-0 (45) Maze,S (2571)-Fedorchuk,S (2650) Nice 2011}) 12... Raxc8 {[%emt 0:00:00]} 13. Bd3 {[%emt 0:00:02] Inhibits Ne4.} Rhd8 {[%emt 0:00:36]} 14. Rd1 {[%emt 0:00:03]} h6 {[%emt 0:00:39]} 15. Ke2 {[%emt 0:01:18]} Rd5 {[%emt 0:01:02]} 16. Bc2 {[%emt 0:00:23]} Rcd8 {[%emt 0:00:49]} 17. Rxd5 {[%emt 0:00:10]} Rxd5 {[%emt 0:00:00]} 18. Rd1 {[%emt 0:02:06]} (18. Bd2 {with more complications.} b5 19. Rd1 Ne5 20. Nxe5 Rxe5+ 21. Kf3) 18... Rxd1 {[%emt 0:00:45]} 19. Bxd1 {[%emt 0:00:00]} Ne4 {[%emt 0:00:04]} 20. Bg3 {[%emt 0:01:04]} f5 {[%emt 0:01:33]} 21. Bc2 {[%emt 0:00:18]} Nxg3+ {[%emt 0:00:05]} 22. hxg3 $11 {[%emt 0:00:00][%mdl 4096] Endgame KBN-KBN} g5 {[%emt 0:00:24]} 23. b4 {[%emt 0:00:42]} Bd6 {[%emt 0:00:33]} 24. a3 {[%emt 0:00:05]} a5 {[%emt 0:00:44]} 25. Ba4 {[%emt 0:00:22]} Ne5 {[%emt 0:00:49]} 26. Nxe5 {[%emt 0:02:26]} Bxe5 {[%emt 0:00:00] KB-KB} 27. Kd3 {[%emt 0:00:01]} g4 {[%emt 0:00:03]} 28. Bb5 {[%emt 0:00:18]} b6 {[%emt 0:00:32]} 29. Bc4 {[%emt 0:00:11]} Kd6 {[%emt 0:00:05]} 30. Bb5 {[%emt 0:00:05]} Bf6 {[%emt 0:00:03]} 31. Ba6 {[%emt 0:00:10]} Bg5 {[%emt 0:00:05]} 32. bxa5 {[%emt 0:00:17]} bxa5 {[%emt 0:00:03]} 33. a4 {[%emt 0:00:01]} Bc1 {[%emt 0:00:07]} 34. Bb5 {[%emt 0:00:03]} Ba3 {[%emt 0:00:04]} 35. Bc4 {[%emt 0:00:03]} Bc5 {[%emt 0:00:02]} 36. Ke2 {[%emt 0:00:01]} Ke5 {[%emt 0:00:05]} 37. Bb3 {[%emt 0:00:07]} Kf6 {[%emt 0:00:27]} 38. Bc4 {[%emt 0:00:05]} e5 {[%emt 0:00:36]} 39. Ba6 {[%emt 0:00:04]} Bb6 {[%emt 0:00:47]} 40. Bc8 $1 {[%emt 0:00:04]} Bc5 {[%emt 0:00:04]} 41. Bd7 {[%emt 0:00:02]} Bb6 {[%emt 0:00:10]} 42. Bc8 {[%emt 0:00:05]} Bc5 {[%emt 0:00:00]} 43. Bd7 {[%emt 0:00:05]} Bb6 {[%emt 0:00:01]} 44. Bc8 {[%emt 0:00:01] An interesting draw.  Weighted Error Value: White=0.03 (flawless) /Black=0.06 (flawless)} 1/2-1/2